bitfinex/quotes_SOLUSD_20250929
["timestamp","ask_amount","ask_price","bid_price","bid_amount"]
[1759108398798,26.0,210.07,210.0,5.48190476]
[1759108399002,0.66,210.06,210.0,5.48190476]
[1759108399396,0.66,210.06,210.0,17.38666666]
[1759108399892,26.0,210.07,210.01,0.72]
[1759108400086,0.66,210.08,210.01,0.72]
[1759108400296,26.0,210.09,210.01,0.72]
[1759108400492,26.66,210.09,210.02,4.76145129]
[1759108400992,26.66,210.09,210.02,5.44145129]
[1759108402110,14.27559401,210.08,210.0,4.76171031]
[1759108402314,14.27559401,210.08,210.0,5.44171031]
[1759108402315,26.68,210.07,210.0,5.44171031]
[1759108402500,26.68,210.07,210.01,0.68]
[1759108402998,62.74,210.08,210.01,0.68]
[1759108403191,0.68,210.07,210.01,0.68]
[1759108404016,0.68,210.07,210.02,4.76145129]
[1759108404222,0.68,210.06,210.02,4.76145129]
[1759108404510,63.42,210.08,210.02,5.44145129]
[1759108404688,68.18010429,210.08,210.02,4.76145129]
[1759108404893,0.68,210.07,210.02,4.76145129]
[1759108405093,0.68,210.06,210.02,4.76145129]
[1759108405313,30.76010429,210.08,210.02,4.76145129]
[1759108405608,31.44010429,210.08,210.02,5.44145129]
[1759108405819,68.18010429,210.08,210.02,5.44145129]
[1759108406107,67.50010429,210.08,210.02,5.44145129]
[1759108406316,0.68,210.07,210.01,4.76166247]
[1759108406616,0.68,210.06,210.01,4.76166247]
[1759108406912,0.68,210.06,210.01,5.44166247]
[1759108407214,0.68,210.05,210.01,4.76166247]
[1759108407911,0.68,210.05,210.0,16.66666666]
[1759108408213,68.16011245,210.08,210.01,0.68]
[1759108408410,0.68,210.07,210.01,0.68]
[1759108408616,37.4,210.07,210.01,0.68]
[1759108408918,26.0,210.08,210.01,0.68]
[1759108409119,62.72,210.08,210.01,0.68]
[1759108409794,26.0,210.08,210.01,0.68]
[1759108409995,26.0,210.08,210.02,4.76145129]
[1759108410195,26.0,210.08,210.02,5.44145129]
[1759108410395,26.68,210.08,210.02,5.44145129]
[1759108410602,26.68,210.08,209.33,53.33878202]
[1759108410603,26.0,209.88,209.82,0.1]
[1759108411102,1.52193632,209.86,209.82,0.1]
[1759108411297,0.68,209.85,209.82,0.1]
[1759108411820,1.52193632,209.86,209.82,0.1]
[1759108411998,2.20193632,209.86,209.82,0.1]
[1759108412196,0.68,209.85,209.82,0.1]
[1759108414199,1.52193632,209.83,209.82,0.1]
[1759108414401,41.79753033,209.83,209.82,0.1]
[1759108414722,78.93753033,209.83,209.82,0.1]
[1759108416022,79.01753033,209.83,209.82,0.1]
[1759108416916,83.78329309,209.83,209.82,0.1]
[1759108417620,46.56329309,209.83,209.82,0.1]
[1759108417821,83.78329309,209.83,209.82,0.1]
[1759108421524,46.56329309,209.83,209.82,0.1]
[1759108421694,27.52193632,209.83,209.82,0.1]
[1759108421897,27.52193632,209.83,209.82,0.78]
[1759108422224,27.52193632,209.83,209.82,0.1]
[1759108423204,27.52193632,209.83,209.82,0.78]
[1759108423415,27.52193632,209.83,209.82,0.1]
[1759108428334,32.96769908,209.83,209.82,0.1]
[1759108429010,46.56329309,209.83,209.82,0.1]
[1759108429718,48.47520189,209.83,209.82,0.1]
[1759108431735,22.47520189,209.83,209.82,0.1]
[1759108434025,20.95326557,209.83,209.82,0.1]
[1759108434279,23.33879963,209.83,209.82,0.1]
[1759108435335,59.77879963,209.83,209.82,0.1]
[1759108438516,22.65879963,209.83,209.82,0.1]
[1759108438717,59.77879963,209.83,209.82,0.1]
[1759108438937,59.75879963,209.83,209.82,0.1]
[1759108441622,60.45879963,209.83,209.82,0.1]
[1759108441945,22.65879963,209.83,209.82,0.1]
[1759108442244,59.73879963,209.83,209.82,0.1]
[1759108444543,60.45879963,209.83,209.82,0.1]
[1759108444743,59.73879963,209.83,209.82,0.1]
[1759108445446,59.71879963,209.83,209.82,0.1]
[1759108447337,54.95303687,209.83,209.82,0.1]
[1759108448047,59.71879963,209.83,209.82,0.1]
[1759108449230,20.74689083,209.83,209.82,0.1]
[1759108449430,57.76689083,209.83,209.82,0.1]
[1759108452048,20.74689083,209.83,209.82,0.1]
[1759108452257,57.76689083,209.83,209.82,0.1]
[1759108453140,60.93763747,209.83,209.82,0.1]
[1759108457459,56.17187471,209.83,209.82,0.1]
[1759108457643,56.17187471,209.83,209.82,0.82]
[1759108457954,56.17187471,209.83,209.82,0.1]
[1759108458336,60.93763747,209.83,209.82,0.1]
[1759108459033,60.89763747,209.83,209.82,0.1]
[1759108459247,60.89763747,209.83,209.82,0.82]
[1759108459439,60.89763747,209.83,209.82,0.1]
[1759108460759,60.87763747,209.83,209.82,0.1]
[1759108460945,23.91763747,209.83,209.82,0.1]
[1759108461152,60.85763747,209.83,209.82,0.1]
[1759108463248,60.83763747,209.83,209.82,0.1]
[1759108463441,23.91763747,209.83,209.82,0.82]
[1759108463752,19.15187471,209.83,209.82,0.82]
[1759108463959,56.07187471,209.83,209.82,0.82]
[1759108465459,60.83763747,209.83,209.82,0.82]
[1759108466664,60.83763747,209.83,209.82,0.1]
[1759108468941,60.81763747,209.83,209.82,0.1]
[1759108470942,61.48763747,209.83,209.82,0.1]
[1759108475670,60.79763747,209.83,209.82,0.1]
[1759108476567,61.46763747,209.83,209.82,0.1]
[1759108476775,60.79763747,209.83,209.82,0.1]
[1759108477352,61.46763747,209.83,209.82,0.1]
[1759108478852,60.79763747,209.83,209.82,0.1]
[1759108479348,60.75763747,209.83,209.82,0.1]
[1759108480182,23.91763747,209.83,209.82,0.82]
[1759108480481,60.75763747,209.83,209.82,0.82]
[1759108480778,60.75763747,209.83,209.82,0.1]
[1759108480947,23.91763747,209.83,209.82,0.1]
[1759108481149,60.75763747,209.83,209.82,0.1]
[1759108483468,23.91763747,209.83,209.82,0.1]
[1759108483669,16.76634065,209.83,209.82,0.82]
[1759108483866,53.58634065,209.83,209.82,0.82]
[1759108484761,58.35210341,209.83,209.82,0.82]
[1759108485286,58.35210341,209.83,209.82,0.1]
[1759108486383,60.73763747,209.83,209.82,0.1]
[1759108486561,61.40763747,209.83,209.82,0.1]
[1759108487889,60.73763747,209.83,209.82,0.1]
[1759108488063,61.40763747,209.83,209.82,0.1]
[1759108488262,60.73763747,209.83,209.82,0.1]
[1759108488463,23.91763747,209.83,209.82,0.1]
[1759108488671,60.73763747,209.83,209.82,0.1]
[1759108490283,23.91763747,209.83,209.82,0.1]
[1759108490490,60.73763747,209.83,209.82,0.1]
[1759108491082,21.53210341,209.83,209.82,0.1]
[1759108491381,60.71763747,209.83,209.82,0.1]
[1759108492283,23.91763747,209.83,209.82,0.1]
[1759108492468,60.71763747,209.83,209.82,0.1]
[1759108493475,23.91763747,209.83,209.82,0.1]
[1759108493679,60.71763747,209.83,209.82,0.1]
[1759108494565,23.91763747,209.83,209.82,0.1]
[1759108494766,60.69763747,209.83,209.82,0.1]
[1759108494968,23.91763747,209.83,209.82,0.1]
[1759108495178,60.69763747,209.83,209.82,0.1]
[1759108495888,23.91763747,209.83,209.82,0.1]
[1759108496083,60.69763747,209.83,209.82,0.1]
[1759108496392,59.8386309,209.83,209.82,0.1]
[1759108497394,23.0586309,209.83,209.82,0.1]
[1759108497690,59.8186309,209.83,209.82,0.1]
[1759108497884,23.0586309,209.83,209.82,0.1]
[1759108498086,59.8186309,209.83,209.82,0.1]
[1759108498588,16.76634065,209.83,209.82,0.79]
[1759108498792,58.29210341,209.83,209.82,0.79]
[1759108500189,58.29210341,209.83,209.82,0.1]
[1759108501389,58.29210341,209.83,209.82,0.79]
[1759108502198,58.29210341,209.83,209.82,0.1]
[1759108502985,58.29210341,209.83,209.82,0.79]
[1759108503194,84.29210341,209.83,209.82,0.79]
[1759108504081,29.17074664,209.83,209.82,0.79]
[1759108504282,1.52652749,209.87,209.82,0.79]
[1759108504483,3.19400172,209.86,209.82,5.55596473]
[1759108504682,5.46186661,209.9,209.83,0.69]
[1759108504683,36.76,209.85,209.83,0.69]
[1759108504882,36.76,209.87,209.83,0.69]
[1759108505080,29.19445683,209.86,209.83,0.69]
[1759108505277,62.78,209.86,209.83,0.69]
[1759108505478,5.46186661,209.94,209.83,0.69]
[1759108505684,3.19388048,209.93,209.83,0.69]
[1759108505893,39.97388048,209.92,209.83,0.69]
[1759108506099,3.19388048,209.91,209.83,0.69]
[1759108506301,39.99388048,209.9,209.84,16.67937475]
[1759108506496,36.8,209.9,209.85,0.69]
[1759108506801,62.78,209.91,209.85,0.69]
[1759108507686,36.78,209.9,209.85,0.69]
[1759108507880,30.76335738,209.94,209.85,0.69]
[1759108508093,16.78531059,209.93,209.85,0.69]
[1759108508304,3.18971658,209.92,209.86,4.76508148]
[1759108508510,36.78,209.91,209.87,0.69]
[1759108509811,39.96971658,209.92,209.87,0.69]
[1759108510304,41.54377753,209.92,209.86,4.76508148]
[1759108510494,44.72927371,209.92,209.88,0.69]
[1759108510813,26.0,209.89,209.85,0.69]
[1759108511012,36.76,209.88,209.85,0.69]
[1759108511183,36.76,209.88,209.86,0.69]
[1759108511608,36.76,209.88,209.82,0.1]
[1759108511911,36.76,209.88,209.87,0.69]
[1759108512582,36.76,209.88,209.85,0.7]
[1759108512789,36.76,209.88,209.83,4.76573669]
[1759108512790,36.76,209.88,209.86,0.7]
[1759108514606,26.0,209.93,209.87,0.7]
[1759108514816,36.76,209.93,209.87,0.7]
[1759108515112,16.77925084,209.95,209.87,0.7]
[1759108515113,36.76,209.92,209.87,0.7]
[1759108516191,36.76,209.92,209.88,4.7646274]
[1759108516391,36.76,209.92,209.89,0.7]
[1759108516727,36.76,209.92,209.9,0.7]
[1759108517695,5.46328706,209.94,209.9,0.7]
[1759108518013,36.76,209.93,209.9,0.7]
[1759108518524,36.76,209.93,209.91,0.7]
[1759108519120,36.76,209.93,209.9,0.7]
[1759108519321,36.76,209.94,209.9,0.7]
[1759108519491,37.46,209.94,209.9,0.7]
[1759108520118,42.22328542,209.94,209.88,4.76460191]
[1759108520304,42.22328542,209.94,209.89,0.7]
[1759108520494,42.22328542,209.94,209.9,0.7]
[1759108520920,42.22328542,209.94,209.88,4.76460191]
[1759108520921,36.76,209.94,209.91,0.7]
[1759108521122,36.74,209.93,209.91,0.7]
[1759108521315,36.74,209.93,209.88,4.76460191]
[1759108521616,36.72,209.94,209.89,0.7]
[1759108521813,41.4836103,209.93,209.89,0.7]
[1759108522029,13.59559401,209.89,209.84,0.7]
[1759108522201,50.31559401,209.89,209.83,0.7]
[1759108522395,13.59559401,209.85,209.8,0.1]
[1759108522604,26.0,209.83,209.8,0.1]
[1759108522835,39.59559401,209.83,209.8,0.1]
[1759108523000,43.75412169,209.83,209.8,0.1]
[1759108523196,13.59559401,209.82,209.8,0.1]
[1759108523425,50.41559401,209.81,209.8,0.1]
[1759108523605,39.59559401,209.77,209.75,0.1]
[1759108523796,51.9621215,209.76,209.75,0.1]
[1759108524010,57.43947466,209.76,209.75,0.1]
[1759108527018,20.59947466,209.76,209.75,0.1]
[1759108527209,57.45947466,209.76,209.75,0.1]
[1759108528698,20.59947466,209.76,209.75,0.1]
[1759108528899,57.45947466,209.76,209.75,0.1]
[1759108529101,39.59559401,209.74,209.73,0.1]
[1759108529317,51.9621215,209.74,209.66,0.1]
[1759108529523,41.1221215,209.71,209.66,0.1]
[1759108529721,77.9821215,209.71,209.66,0.1]
[1759108529910,78.6921215,209.71,209.66,0.1]
[1759108530631,80.60558511,209.71,209.66,0.1]
[1759108531013,85.37407492,209.71,209.66,0.1]
[1759108531217,78.36905762,209.71,209.66,0.8]
[1759108531528,79.07905762,209.71,209.66,0.1]
[1759108533312,79.95558511,209.71,209.66,0.1]
[1759108533506,85.43407492,209.71,209.66,0.1]
[1759108535119,39.59559401,209.67,209.66,0.1]
[1759108535319,78.0621215,209.67,209.66,0.1]
[1759108535631,78.7721215,209.67,209.66,0.1]
[1759108535957,80.68604289,209.67,209.66,1e-08]
[1759108536930,43.03604289,209.67,209.66,1e-08]
[1759108537236,84.74544242,209.67,209.66,1e-08]
[1759108537834,85.45544242,209.67,209.66,1e-08]
[1759108538132,20.27891493,209.67,209.66,1e-08]
[1759108538323,58.74544242,209.67,209.66,1e-08]
[1759108539630,59.45544242,209.67,209.66,1e-08]
[1759108539835,58.74544242,209.67,209.66,1e-08]
[1759108540743,59.45544242,209.67,209.66,1e-08]
[1759108542222,22.51544242,209.67,209.66,1e-08]
[1759108542424,59.47544242,209.67,209.66,1e-08]
[1759108543232,59.47544242,209.67,209.64,0.1]
[1759108543233,71.39894125,209.67,209.64,1e-08]
[1759108543440,13.59559401,209.65,209.64,1e-08]
[1759108543642,50.55559401,209.65,209.64,1e-08]
[1759108543827,52.0821215,209.65,209.64,1e-08]
[1759108544438,50.55559401,209.65,209.64,1e-08]
[1759108544646,50.55559401,209.65,209.64,0.70000001]
[1759108544647,15.1221215,209.65,209.64,0.70000001]
[1759108544927,13.59559401,209.65,209.64,0.70000001]
[1759108545132,50.57559401,209.65,209.64,0.70000001]
[1759108546249,55.34544852,209.65,209.64,0.70000001]
[1759108546757,13.59559401,209.65,209.64,0.70000001]
[1759108546952,15.5092407,209.65,209.64,0.70000001]
[1759108547153,13.59559401,209.65,209.64,0.70000001]
[1759108547455,39.59559401,209.65,209.64,0.70000001]
[1759108548445,44.36544852,209.65,209.64,0.70000001]
[1759108550242,81.36544852,209.65,209.64,0.70000001]
[1759108550438,81.36544852,209.65,209.64,1e-08]
[1759108550751,55.36544852,209.65,209.64,1e-08]
[1759108551756,56.07544852,209.65,209.64,1e-08]
[1759108551964,57.98946149,209.65,209.64,1e-08]
[1759108553764,57.98946149,209.65,209.63,1e-08]
[1759108553765,13.59559401,209.64,209.63,1e-08]
[1759108554142,14.30559401,209.64,209.63,1e-08]
[1759108554365,19.07567605,209.64,209.63,1e-08]
[1759108554745,39.59559401,209.62,209.61,1e-08]
[1759108554936,76.61559401,209.62,209.61,1e-08]
[1759108555142,77.32559401,209.62,209.61,1e-08]
[1759108555643,77.32559401,209.62,209.53,0.69]
[1759108555834,41.1221215,209.54,209.53,0.69]
[1759108556037,78.1621215,209.54,209.53,0.69]
[1759108556262,79.0269704,209.54,209.53,0.69]
[1759108556557,81.40976773,209.54,209.53,0.69]
[1759108557553,86.18212622,209.54,209.53,0.69]
[1759108559757,81.40976773,209.54,209.53,0.69]
[1759108560360,13.59559401,209.53,209.51,0.69]
[1759108560544,13.59559401,209.51,209.47,4.77381462]
[1759108560747,13.59559401,209.51,209.46,4.77418122]
[1759108561244,13.59559401,209.51,209.47,0.69]
[1759108561450,13.59559401,209.49,209.47,0.69]
[1759108563246,13.59559401,209.49,209.45,0.1]
[1759108563247,13.59559401,209.47,209.45,0.1]
[1759108563742,14.36334475,209.49,209.46,0.69]
[1759108563940,37.06,209.5,209.46,0.69]
[1759108564155,50.67559401,209.51,209.46,0.69]
[1759108565057,50.67559401,209.51,209.47,4.77395331]
[1759108565250,50.67559401,209.51,209.48,0.69]
[1759108565448,13.59559401,209.51,209.48,0.69]
[1759108567154,13.59559401,209.51,209.48,5.4634995]
[1759108567359,13.59559401,209.51,209.49,0.69]
[1759108567766,14.35990714,209.54,209.49,0.69]
[1759108567969,2.39137639,209.62,209.49,0.69]
[1759108568270,26.0,209.58,209.49,0.69]
[1759108568455,63.1,209.58,209.49,0.69]
[1759108568658,26.0,209.58,209.49,0.69]
[1759108568857,13.59559401,209.58,209.49,0.69]
[1759108569061,26.0,209.57,209.56,2.39137639]
[1759108569267,26.0,209.57,209.56,3.08137639]
[1759108569464,37.1,209.59,209.56,3.08137639]
[1759108569661,13.59559401,209.59,209.58,2.39137639]
[1759108569868,13.59559401,209.59,209.58,3.08137639]
[1759108570871,4.77008204,209.64,209.58,3.08137639]
[1759108571054,50.69559401,209.63,209.6,2.39137639]
[1759108571372,39.59559401,209.63,209.61,0.69]
[1759108571580,13.59559401,209.64,209.62,2.39137639]
[1759108571752,13.59559401,209.64,209.63,0.71]
[1759108572062,13.59559401,209.69,209.63,0.71]
[1759108572260,37.1,209.68,209.65,2.39137639]
[1759108572463,26.0,209.66,209.65,3.10137639]
[1759108572672,37.1,209.68,209.65,2.39137639]
[1759108572870,37.1,209.68,209.66,0.71]
[1759108573173,13.59559401,209.73,209.67,0.71]
[1759108573367,26.0,209.68,209.67,3.10137639]
[1759108573567,16.7755167,209.71,209.67,3.10137639]
[1759108573762,16.7755167,209.71,209.68,0.71]
[1759108573965,16.7755167,209.71,209.69,3.10137639]
[1759108574278,13.59559401,209.71,209.7,0.71]
[1759108574578,18.36317446,209.75,209.7,0.71]
[1759108574867,3.18098074,209.74,209.71,2.39137639]
[1759108575073,53.87657475,209.76,209.73,2.39137639]
[1759108575260,3.18098074,209.75,209.73,3.10137639]
[1759108575455,26.0,209.74,209.73,3.10137639]
[1759108576767,14.29559401,209.8,209.73,0.71]
[1759108576970,39.59559401,209.77,209.73,0.71]
[1759108577167,42.77571295,209.77,209.73,0.71]
[1759108577474,42.77571295,209.77,209.72,2.39137639]
[1759108577673,26.0,209.74,209.7,0.71]
[1759108577879,26.0,209.7,209.63,0.71]
[1759108578060,63.12,209.7,209.65,2.39137639]
[1759108578260,63.82,209.7,209.65,2.39137639]
[1759108578677,63.12,209.7,209.66,0.71]
[1759108578954,63.12,209.7,209.67,0.71]
[1759108579155,26.0,209.7,209.68,0.71]
[1759108579355,26.0,209.7,209.69,0.71]
[1759108579585,26.0,209.7,209.67,2.39137639]
[1759108579783,26.0,209.7,209.67,3.10137639]
[1759108580284,26.0,209.7,209.68,0.71]
[1759108580468,26.0,209.7,209.67,2.39137639]
[1759108580673,26.0,209.7,209.67,3.10137639]
[1759108581465,26.0,209.7,209.68,0.66]
[1759108582061,26.0,209.7,209.65,7.16122965]
[1759108582287,13.59559401,209.8,209.69,2.39137639]
[1759108582467,13.59559401,209.78,209.71,2.39137639]
[1759108582782,39.59559401,209.78,209.73,2.39137639]
[1759108582976,37.24,209.8,209.74,0.66]
[1759108583173,37.24,209.8,209.75,4.76758045]
[1759108583378,37.24,209.8,209.76,0.66]
[1759108583567,39.59559401,209.82,209.77,0.66]
[1759108583771,37.24,209.81,209.78,0.66]
[1759108583987,37.24,209.81,209.75,7.15895684]
[1759108584177,37.24,209.81,209.76,0.66]
[1759108584708,37.24,209.81,209.75,7.15895684]
[1759108584994,37.24,209.81,209.75,7.81895684]
[1759108585197,37.24,209.81,209.77,2.39137639]
[1759108585583,37.24,209.81,209.77,0.66]
[1759108585897,42.00625092,209.81,209.77,0.66]
[1759108586106,42.00625092,209.81,209.75,7.81895684]
[1759108586977,37.24,209.81,209.75,7.15895684]
[1759108587174,37.24,209.81,209.76,0.66]
[1759108589299,13.59559401,209.79,209.73,7.15919968]
[1759108589588,37.24,209.81,209.75,2.39137639]
[1759108589789,30.76619822,209.82,209.73,4.76782329]
[1759108589790,26.0,209.82,209.77,2.39137639]
[1759108589983,0.86,209.87,209.79,2.39137639]
[1759108590185,13.79559401,209.87,209.81,2.39137639]
[1759108590488,26.2,209.87,209.82,0.66]
[1759108590695,26.2,209.87,209.83,0.66]
[1759108591490,0.2,209.87,209.84,5.42553564]
[1759108591683,0.2,209.87,209.85,0.66]
[1759108592087,0.2,209.87,209.83,3.05137639]
[1759108592289,31.62488995,209.87,209.81,3.05137639]
[1759108592669,31.62488995,209.87,209.81,7.81757472]
[1759108593170,31.62488995,209.87,209.81,3.05137639]
[1759108593596,31.62488995,209.87,209.81,0.66]
[1759108593890,26.2,209.87,209.81,0.66]
[1759108594093,63.42,209.87,209.81,0.66]
[1759108594394,68.1848576,209.87,209.81,0.66]
[1759108595273,63.42,209.87,209.81,0.66]
[1759108595473,14.25559401,209.86,209.8,2.39137639]
[1759108595877,13.59559401,209.84,209.77,4.76695344]
[1759108596081,50.81559401,209.84,209.77,7.81832983]
[1759108596295,51.47559401,209.84,209.77,7.81832983]
[1759108596493,51.47559401,209.84,209.77,2.39137639]
[1759108596679,13.59559401,209.82,209.75,0.66]
[1759108597001,0.66,209.81,209.75,7.81892172]
[1759108597171,0.2,209.87,209.79,2.39137639]
[1759108597380,0.2,209.87,209.85,2.39137639]
[1759108597700,0.2,209.87,209.85,7.81661428]
[1759108600191,0.2,209.87,209.85,7.15662321]
[1759108600402,0.2,209.87,209.86,5.405889]
[1759108602092,0.2,209.87,209.84,4.76551593]
[1759108602290,0.2,209.87,209.86,5.405889]
[1759108603500,0.2,209.87,209.84,4.76551593]
[1759108603674,0.2,209.87,209.86,5.405889]
[1759108604376,0.2,209.87,209.86,10.17097048]
[1759108605979,0.2,209.87,209.86,10.83097048]
[1759108607777,0.2,209.87,209.86,10.17097048]
[1759108609280,0.2,209.87,209.86,10.83097048]
[1759108609885,26.2,209.91,209.86,10.83097048]
[1759108609886,0.2,209.91,209.86,22.74367418]
[1759108610095,0.2,209.91,209.9,5.405889]
[1759108610292,0.2,209.91,209.9,10.17006241]
[1759108610498,0.2,209.91,209.9,10.83006241]
[1759108617092,0.2,209.91,209.9,5.42417341]
[1759108617290,0.2,209.91,209.9,10.83006241]
[1759108618209,0.2,209.91,209.9,3.70331204]
[1759108618592,0.2,209.91,209.88,4.76462576]
[1759108618913,0.86,209.91,209.9,3.70331204]
[1759108620112,0.86,209.91,209.88,3.70331204]
[1759108620322,13.79559401,209.91,209.85,3.70331204]
[1759108620498,0.66,209.9,209.85,3.70331204]
[1759108621040,0.66,209.9,209.85,4.39331204]
[1759108621413,13.79559401,209.91,209.86,0.69]
[1759108621906,0.2,209.91,209.87,4.39331204]
[1759108622113,0.2,209.91,209.88,4.7646274]
[1759108622311,0.2,209.91,209.89,1.52397246]
[1759108622526,0.2,209.91,209.89,2.21397246]
[1759108622707,0.2,209.91,209.89,1.52397246]
[1759108622902,0.2,209.91,209.9,0.69]
[1759108624118,0.2,209.91,209.9,5.45417341]
[1759108624431,0.2,209.91,209.9,4.76417341]
[1759108624796,0.2,209.91,209.9,5.45417341]
[1759108625023,0.2,209.91,209.9,4.76417341]
[1759108625231,0.2,209.91,209.9,5.45417341]
[1759108625411,0.2,209.91,209.9,4.76417341]
[1759108625928,0.2,209.91,209.89,4.7644004]
[1759108626240,0.2,209.91,209.89,5.4544004]
[1759108626604,0.2,209.91,209.9,0.69]
[1759108628029,0.2,209.91,209.9,4.76417341]
[1759108628408,0.2,209.91,209.9,5.45417341]
[1759108628711,0.2,209.91,209.9,6.97814587]
[1759108629345,14.25559401,210.01,209.9,42.70944647]
[1759108629627,13.59559401,210.01,209.91,37.91]
[1759108629805,13.59559401,210.05,209.97,1.52397246]
[1759108630001,13.59559401,210.05,209.99,4.76213153]
[1759108630613,13.59559401,210.05,209.99,5.45213153]
[1759108631020,13.59559401,210.05,209.99,17.35746035]
[1759108631220,14.25559401,210.05,209.99,18.88143281]
[1759108632112,14.25559401,210.05,209.99,11.90532882]
[1759108632315,14.25559401,210.05,209.98,1.52397246]
[1759108634222,0.7,210.04,209.97,6.95655759]
[1759108634617,0.7,210.04,209.97,18.86302041]
[1759108635425,18.35637581,210.05,209.97,6.28655759]
[1759108635618,14.29559401,210.05,209.98,0.67]
[1759108636344,13.59559401,210.05,209.99,6.28610399]
[1759108636516,13.59559401,210.05,210.0,0.67]
[1759108636716,26.0,210.05,210.01,0.67]
[1759108637032,26.0,210.05,210.01,2.19397246]
[1759108637234,26.2,210.08,210.02,0.67]
[1759108637438,26.2,210.08,210.03,1.52397246]
[1759108637642,0.2,210.08,210.05,1.52397246]
[1759108637846,0.2,210.08,210.06,0.67]
[1759108638320,0.2,210.08,210.07,4.76031798]
[1759108638639,0.2,210.08,210.07,5.43031798]
[1759108639136,0.2,210.08,210.05,1.52397246]
[1759108639340,0.2,210.08,210.05,2.19397246]
[1759108639634,0.2,210.08,210.06,0.67]
[1759108640435,0.2,210.08,210.01,1.52397246]
[1759108640637,0.2,210.08,210.03,1.52397246]
[1759108640842,0.2,210.08,210.06,1.52397246]
[1759108641030,0.2,210.08,210.04,0.68]
[1759108641232,0.2,210.08,210.06,1.52397246]
[1759108641747,0.2,210.08,210.07,0.68]
[1759108642247,0.2,210.08,210.07,2.20397246]
[1759108642424,0.2,210.08,210.06,1.52397246]
[1759108642846,0.2,210.08,210.07,0.68]
[1759108643225,0.2,210.08,210.06,1.52397246]
[1759108643424,0.2,210.08,210.06,0.68]
[1759108643822,0.2,210.08,210.07,0.68]
[1759108645448,0.2,210.08,210.05,4.7607577]
[1759108645642,0.2,210.08,210.07,0.68]
[1759108646843,0.2,210.08,210.06,1.52397246]
[1759108647047,0.2,210.08,210.06,6.96446311]
[1759108647254,0.2,210.08,210.07,0.68]
[1759108649233,0.2,210.08,210.05,37.24]
[1759108649544,0.2,210.08,210.05,37.22]
[1759108650143,0.2,210.08,210.04,6.96484351]
[1759108650144,0.66,210.07,210.04,37.22]
[1759108650341,0.66,210.07,210.03,37.22]
[1759108650547,0.66,210.06,210.01,37.22]
[1759108650731,0.66,210.05,210.0,1.52397246]
[1759108650928,0.66,210.05,210.02,37.22]
[1759108651248,31.42042366,210.07,210.02,37.22]
[1759108651444,0.66,210.06,210.02,37.22]
[1759108651622,0.66,210.05,210.02,37.22]
[1759108651825,4.76059798,210.06,210.02,37.22]
[1759108652049,5.42059798,210.06,210.02,37.22]
[1759108652426,4.76059798,210.06,210.0,5.44190194]
[1759108652628,0.66,210.05,209.98,0.68]
[1759108652845,0.66,210.05,209.98,37.9]
[1759108653143,0.66,210.04,209.98,37.9]
[1759108653644,4.76122458,210.03,209.98,0.68]
[1759108653851,0.66,210.02,209.98,37.22]
[1759108654141,4.76122458,210.03,209.98,37.9]
[1759108654745,0.66,210.04,209.98,37.9]
[1759108655359,5.42103822,210.04,209.98,37.9]
[1759108655857,0.66,210.04,209.99,4.76213153]
[1759108656224,0.66,210.04,209.99,5.44213153]
[1759108657231,26.0,210.06,210.0,0.68]